bitfinex-derivatives/quotes_ETHF0:USTF0_20251107
["timestamp","ask_amount","ask_price","bid_price","bid_amount"]
[1762481640102,0.2058,3320.5,3319.7,0.00333943]
[1762481640299,3.2078,3320.9,3320.3,0.48816]
[1762481640504,3.2078,3321.4,3320.5,0.2031]
[1762481640699,0.00367608,3321.6,3321.2,0.3227]
[1762481640903,0.48802,3321.3,3321.2,0.3227]
[1762481641106,0.48801,3321.4,3321.3,0.48802]
[1762481641313,0.48801,3321.4,3321.2,3.69583]
[1762481641504,0.48801,3321.4,3321.2,3.2078]
[1762481641704,0.48803,3321.2,3321.1,2.16525121]
[1762481641903,0.83643,3321.2,3321.1,0.00451691]
[1762481642609,4.04423,3321.2,3321.1,0.00451691]
[1762481642911,0.3484,3320.6,3320.5,2.1607343]
[1762481643107,0.83659,3320.1,3320.0,3.2078]
[1762481644511,0.48824,3319.8,3319.7,0.00634842]
[1762481644710,3.2078,3320.4,3319.7,0.00634842]
[1762481644915,0.48817,3320.3,3320.2,0.3317]
[1762481645616,0.48814,3320.5,3320.3,0.81986]
[1762481645811,0.48814,3320.5,3320.4,0.3317]
[1762481646214,0.48818,3320.3,3320.1,3.69598]
[1762481646515,0.48818,3320.3,3320.1,3.2078]
[1762481646706,0.48818,3320.3,3320.1,3.69599]
[1762481647512,0.2058,3321.0,3320.1,3.2078]
[1762481647713,0.48813,3320.6,3320.4,0.48814]
[1762481648721,0.2058,3321.0,3320.4,0.48814]
[1762481649221,0.48814,3320.5,3320.4,0.81984]
[1762481650008,0.48809,3320.9,3320.4,0.81984]
[1762481650216,0.48812,3320.6,3320.5,0.81983]
[1762481650516,0.48812,3320.6,3320.5,0.3317]
[1762481650712,0.48816,3320.3,3320.2,4.29117]
[1762481650918,0.48815,3320.5,3320.4,0.3317]
[1762481651112,0.48814,3320.5,3320.4,0.81984]
[1762481651312,0.2058,3321.0,3320.6,0.48811]
[1762481651517,0.48813,3320.6,3320.5,0.3317]
[1762481651913,0.2058,3321.0,3320.2,3.803]
[1762481652117,0.48809,3320.9,3320.8,0.81979]
[1762481652821,0.48809,3320.9,3320.8,0.3317]
[1762481653023,0.48809,3320.9,3320.8,0.81979]
[1762481653913,0.48809,3320.9,3320.8,0.3317]
[1762481654214,0.84252,3320.6,3320.5,3.2078]
[1762481654813,0.84252,3320.6,3320.4,2.16026993]
[1762481654814,0.48814,3320.5,3320.4,2.16026993]
[1762481655014,0.48816,3320.3,3320.2,5.96326993]
[1762481655524,0.1983,3320.5,3320.2,5.96326993]
[1762481655721,0.68644,3320.5,3320.3,0.48816]
[1762481655912,0.48815,3320.4,3320.3,0.48816]
[1762481656111,0.48816,3320.3,3320.2,6.29496993]
[1762481656314,0.84256,3320.3,3320.2,3.803]
[1762481656512,0.1983,3320.5,3319.7,2.71084268]
[1762481656513,0.48822,3319.9,3319.8,2.16026993]
[1762481657013,0.1983,3320.5,3319.7,11.42861835]
[1762481657014,0.48824,3319.8,3319.7,11.42861835]
[1762481657221,0.84264,3319.8,3319.7,15.23161835]
[1762481657421,0.84264,3319.8,3319.7,2.16661835]
[1762481657624,0.84264,3319.8,3319.7,0.00634842]
[1762481657917,0.3544,3318.6,3318.5,0.11895993]
[1762481658117,0.1983,3319.0,3317.8,3.77481069]
[1762481658118,0.48852,3317.9,3317.8,3.77481069]
[1762481658317,0.48855,3317.7,3317.6,3.2078]
[1762481658524,0.48854,3317.8,3317.6,3.2078]
[1762481658717,0.48856,3317.6,3317.5,9.262]
[1762481658917,0.49117955,3317.6,3317.5,9.26554498]
[1762481659117,0.84557955,3317.6,3316.8,3.2078]
[1762481659320,3.2078,3317.3,3316.6,9.5927]
[1762481659723,0.48866,3317.0,3316.8,3.2078]
[1762481659918,0.48861,3317.3,3316.8,3.2078]
[1762481660118,0.48866,3317.0,3316.8,3.2078]
[1762481660327,0.48861,3317.3,3317.0,0.48864]
[1762481660522,0.4886,3317.4,3317.0,0.48864]
[1762481660724,0.48861,3317.3,3317.0,0.48864]
[1762481661121,0.49119955,3317.6,3317.2,0.48861]
[1762481661323,0.48861,3317.3,3316.8,3.41413637]
[1762481661624,0.49119955,3317.6,3316.8,3.41413637]
[1762481661824,0.00261955,3317.6,3317.0,3.2078]
[1762481662020,0.00261955,3317.6,3317.3,0.48859]
[1762481662224,0.00261955,3317.6,3317.4,0.48859]
[1762481662622,0.00261955,3317.6,3317.5,0.3317]
[1762481666529,3.4061,3318.6,3317.4,3.3792]
[1762481666733,3.4061,3318.6,3317.8,3.2078]
[1762481666734,0.48851,3318.0,3317.8,3.2078]
[1762481667229,0.68681,3318.0,3317.8,3.2078]
[1762481667528,0.00271446,3318.0,3317.7,4.02804]
[1762481667734,0.00271446,3318.0,3317.9,0.3317]
[1762481668131,0.48852,3317.9,3317.7,3.2078]
[1762481669534,0.48852,3317.9,3317.6,0.48856]
[1762481669731,0.68952446,3318.0,3317.7,0.48854]
[1762481670030,0.20101446,3318.0,3317.7,0.48854]
[1762481670235,0.20101446,3318.0,3317.5,0.49308691]
[1762481670430,0.20101446,3318.0,3317.6,0.48855]
[1762481671331,0.48856,3317.7,3317.5,0.00451691]
[1762481671734,0.3544,3317.6,3317.5,0.00451691]
[1762481673042,0.84296,3317.6,3317.5,0.00451691]
[1762481673744,3.40881446,3318.0,3317.5,0.00451691]
[1762481673938,0.48852,3317.9,3317.7,0.48855]
[1762481674142,0.48853,3317.8,3317.7,0.82025]
[1762481674936,3.40881446,3318.0,3317.7,0.82025]
[1762481675140,3.21051446,3318.0,3317.9,0.3332]
[1762481675737,0.00271446,3318.0,3317.9,10.08272]
[1762481676042,0.00271446,3318.0,3317.9,13.29052]
[1762481676846,0.48842,3318.6,3318.5,0.82162]
[1762481677149,0.48842,3318.6,3318.5,0.3332]
[1762481677950,0.4885,3318.0,3317.9,3.2078]
[1762481678152,0.4885,3318.0,3317.9,12.4688]
[1762481678645,0.1947,3318.5,3318.2,0.3473]
[1762481678847,0.1947,3318.5,3318.2,0.83577]
[1762481679155,0.48846,3318.3,3318.2,0.3473]
[1762481679546,0.48844,3318.4,3318.3,0.83575]
[1762481679751,0.48844,3318.4,3318.3,4.04355]
[1762481680051,0.48844,3318.4,3318.3,3.5551]
[1762481680651,0.48844,3318.4,3318.3,3.69626]
[1762481680852,0.48844,3318.4,3318.3,3.2078]
[1762481681047,0.82614,3318.4,3318.3,3.2078]
[1762481681446,0.48844,3318.4,3318.3,3.2078]
[1762481681655,0.49160025,3318.6,3318.3,3.2078]
[1762481681855,0.49160025,3318.6,3318.5,0.3473]
[1762481682250,0.48844,3318.4,3318.3,3.69626]
[1762481682654,0.00318025,3318.6,3318.3,3.2078]
[1762481682853,0.49159025,3318.6,3318.5,0.48843]
[1762481683955,0.48844,3318.5,3318.3,3.69624]
[1762481684153,0.48844,3318.4,3318.3,4.04356]
[1762481684462,0.4885,3318.1,3318.0,0.8358]
[1762481684661,1.0209,3318.0,3317.9,3.2078]
[1762481684864,0.82626,3317.6,3317.5,3.21231691]
[1762481685063,0.82626,3317.6,3317.5,7.01531691]
[1762481685266,0.48856,3317.6,3317.5,7.50389691]
[1762481685464,0.48856,3317.6,3317.5,7.01531691]
[1762481685669,0.48856,3317.6,3317.5,3.21231691]
[1762481687766,0.1947,3318.0,3317.5,3.70089691]
[1762481687965,3.2078,3318.3,3317.7,0.48853]
[1762481688168,0.48853,3317.8,3317.7,0.3217]
[1762481688364,0.48856,3317.6,3317.5,3.21231691]
[1762481688669,0.80866,3317.6,3317.5,3.21231691]
[1762481689270,0.2041,3318.0,3317.5,3.21231691]
[1762481689569,0.48856,3317.6,3317.5,4.02258691]
[1762481689758,0.48856,3317.6,3317.5,3.53401691]
[1762481689960,0.48856,3317.6,3317.5,3.21231691]
[1762481690160,0.80866,3317.6,3317.5,0.00451691]
[1762481693068,1.2798085,3318.5,3317.5,8.18371691]
[1762481693270,0.74216201,3318.4,3317.9,3.2078]
[1762481693471,0.5242,3318.0,3317.5,0.00451691]
[1762481693680,3.69635,3317.7,3317.5,0.00451691]
[1762481693870,0.48855,3317.7,3317.5,0.00451691]
[1762481695578,3.5279,3317.6,3317.5,0.00451691]
[1762481696675,0.48855,3317.7,3317.5,0.49308691]
[1762481697472,3.5279,3317.6,3317.5,0.00451691]
[1762481700783,0.2041,3318.0,3317.5,0.00451691]
[1762481701180,0.00318025,3318.6,3318.3,0.3217]
[1762481701381,0.00451691,3318.9,3318.8,0.81009]
[1762481701587,0.49288691,3318.9,3318.8,0.3217]
[1762481701788,0.00451691,3318.9,3318.7,3.69619]
[1762481701982,0.00451691,3318.9,3318.8,0.3217]
[1762481702485,0.4966356,3318.9,3318.6,3.2078]
[1762481702781,0.0082556,3318.9,3318.2,5.83920592]
[1762481702975,0.0082556,3318.9,3318.2,3.2078]
[1762481703180,0.48845,3318.4,3318.2,3.69627]
[1762481703480,0.48845,3318.4,3318.2,3.2078]
[1762481703875,0.2041,3318.6,3318.2,3.69627]
[1762481704081,0.48845,3318.4,3318.2,3.69627]
[1762481704489,0.48845,3318.4,3318.2,3.2078]
[1762481708590,3.2078,3318.8,3318.7,0.3101]
[1762481708883,0.0082556,3318.9,3318.8,0.3101]
[1762481709190,0.48841,3318.7,3318.2,5.35074592]
[1762481709388,0.48842,3318.6,3318.3,2.14294592]
[1762481709682,0.0082556,3318.9,3318.8,0.3101]
[1762481709883,0.4966256,3318.9,3318.8,0.3101]
[1762481710086,0.4966256,3318.9,3318.4,2.14294592]
[1762481710087,0.48842,3318.6,3318.4,2.14294592]
[1762481710281,0.48849,3318.2,3318.0,0.4885]
[1762481710485,3.2078,3318.7,3318.1,3.2078]
[1762481710681,0.48842,3318.6,3318.1,5.35074592]
[1762481710986,0.48843,3318.5,3318.3,0.48845]
[1762481711992,3.2078,3318.7,3318.2,2.14294592]
[1762481712292,0.48843,3318.5,3318.2,2.14294592]
[1762481712488,3.2078,3318.7,3318.4,0.48844]
[1762481712688,0.48843,3318.5,3318.4,0.48844]
[1762481712888,0.48846,3318.3,3318.2,0.79856]
[1762481713089,0.48844,3318.4,3318.3,0.48845]
[1762481714994,0.0082556,3318.9,3318.8,0.79849]
[1762481715190,3.2078,3320.2,3319.4,0.3101]
[1762481715394,0.48831,3319.3,3319.2,3.2078]
[1762481715893,0.48827,3319.6,3319.5,0.3101]
[1762481716292,0.49129183,3319.6,3319.5,0.31366523]
[1762481716493,0.00302183,3319.6,3319.5,0.80194523]
[1762481716690,0.00302183,3319.6,3319.5,0.98114523]
[1762481716991,3.2078,3320.6,3319.5,9.42876523]
[1762481717193,0.186,3321.5,3320.5,0.3101]
[1762481717194,3.3938,3321.0,3320.5,0.3101]
[1762481717690,0.48812,3320.7,3320.5,0.3101]
[1762481717897,0.3207,3320.6,3320.0,3.2078]
[1762481718098,0.3207,3320.6,3319.7,0.48825]
[1762481718099,0.48822,3320.0,3319.7,0.48825]
[1762481718599,0.48822,3320.0,3319.8,0.48824]
[1762481718995,0.186,3320.4,3319.6,12.94106]
[1762481719307,0.48827,3319.6,3319.5,0.00356523]
[1762481719894,0.80897,3319.6,3319.5,0.00356523]
[1762481720797,0.186,3319.8,3319.5,0.00356523]
[1762481721402,0.3207,3319.6,3319.5,0.00356523]
[1762481722596,0.48826,3319.7,3319.5,0.00356523]
[1762481722903,0.3207,3319.6,3319.5,0.00356523]
[1762481724306,0.48826,3319.7,3319.5,0.00356523]
[1762481724505,0.48826,3319.7,3319.5,0.49183523]
[1762481724807,0.48826,3319.7,3319.5,0.00356523]
[1762481725006,0.186,3319.8,3319.5,0.00356523]
[1762481725304,3.3938,3320.4,3319.6,3.69607]
[1762481725893,0.48824,3319.8,3319.7,0.48825]
[1762481726606,0.48824,3319.8,3319.6,3.69607]
[1762481726807,3.3938,3320.4,3319.7,0.48825]
[1762481727002,0.48825,3319.7,3319.6,3.2078]
[1762481727201,0.80895,3319.7,3319.6,3.2078]
[1762481727408,0.48825,3319.7,3319.6,3.2078]
[1762481728202,0.48824,3319.8,3319.6,3.2078]
[1762481729310,0.3207,3319.7,3319.6,3.2078]
[1762481729508,0.80897,3319.6,3319.5,0.00356523]
[1762481729701,0.48825,3319.7,3319.5,0.00356523]
[1762481730810,0.48827,3319.6,3319.5,0.00356523]
[1762481731307,3.2078,3319.8,3319.5,0.49184523]
[1762481731513,0.186,3320.0,3319.5,0.00356523]
[1762481732212,0.48827,3319.6,3319.5,0.00356523]
[1762481732414,0.80897,3319.6,3319.5,0.00356523]
[1762481734409,0.4884,3318.7,3318.6,3.2078]
[1762481734616,0.8091,3318.7,3318.6,3.2078]
[1762481735114,0.2902,3318.2,3318.1,2.15256738]
[1762481735416,0.48852,3317.9,3317.8,5.36488429]
[1762481735717,0.48852,3317.9,3317.8,3.21607569]
[1762481735914,0.2902,3317.9,3317.8,3.21607569]
[1762481736411,0.2902,3317.9,3317.8,0.00827569]
[1762481736923,0.48865,3317.0,3316.9,2.15256738]
[1762481737219,0.48865,3317.0,3316.7,0.48869]
[1762481737420,0.48867,3316.9,3316.8,0.2879]
[1762481737614,0.48867,3316.9,3316.7,2.15256738]
[1762481737820,0.48869,3316.7,3316.6,3.2078]
[1762481738020,0.48869,3316.7,3316.6,3.21101821]
[1762481738313,0.1861,3317.0,3316.6,3.21101821]
[1762481738520,0.48865,3317.1,3316.7,0.48869]
[1762481738714,0.48865,3317.1,3316.6,3.21101821]
[1762481739115,0.48866,3317.0,3316.7,0.48869]
[1762481740119,0.48863,3317.2,3316.9,0.76406]
[1762481740918,0.48865,3317.1,3316.9,0.2754]
[1762481742219,0.48862,3317.3,3317.2,0.2754]
[1762481742622,0.1861,3318.0,3317.2,8.0]
[1762481742917,0.48853,3317.9,3317.7,0.48854]
[1762481743310,0.48853,3317.9,3317.8,3.2078]
[1762481743511,0.48849,3318.1,3317.9,0.48852]
[1762481743717,0.48849,3318.1,3318.0,0.2754]
[1762481743920,0.48851,3318.0,3317.8,3.69633]
[1762481744228,0.4917929,3318.2,3318.1,0.2754]
[1762481744923,0.0033129,3318.2,3318.1,0.2754]
[1762481750131,0.0033129,3318.2,3318.1,0.76389]
[1762481750425,0.48849,3318.1,3317.8,12.4418]
[1762481750628,0.48849,3318.1,3318.0,0.4885]
[1762481750926,0.0033129,3318.2,3318.1,0.76389]
[1762481751126,0.4917829,3318.2,3318.1,0.76389]
[1762481751923,0.0033129,3318.2,3318.1,0.76389]
[1762481752129,0.0033129,3318.2,3318.1,4.56689]
[1762481752732,0.4917829,3318.2,3318.1,4.56689]
[1762481754836,0.0033129,3318.2,3318.1,4.56689]
[1762481755135,0.4917829,3318.2,3318.1,4.56689]
[1762481755735,0.0033129,3318.2,3318.1,4.56689]
[1762481756536,0.4917829,3318.2,3318.1,4.56689]
[1762481757034,0.4917829,3318.2,3318.1,3.803]
[1762481757536,0.7553829,3318.2,3318.1,3.803]
[1762481758033,0.7553829,3318.2,3318.0,3.803]
[1762481758034,0.48849,3318.1,3318.0,3.803]
[1762481758436,0.0033129,3318.2,3318.1,0.76389]
[1762481759434,0.0033129,3318.2,3318.1,13.79489]
[1762481759827,0.4917829,3318.2,3318.1,4.0784]
[1762481760023,0.4917829,3318.2,3318.1,13.79389]
[1762481760224,0.0033129,3318.2,3318.1,13.79389]
[1762481761240,0.4917829,3318.2,3318.1,13.03]
[1762481761528,0.4917829,3318.2,3318.1,3.803]
[1762481762326,0.0033129,3318.2,3318.1,6.72009815]
[1762481762529,0.00451691,3318.5,3318.4,0.76384]
[1762481762730,0.00451691,3318.5,3318.4,3.97164]
[1762481763236,0.00451691,3318.5,3318.4,19.15353268]
[1762481763543,0.1593,3320.0,3319.3,0.76371]
[1762481763844,0.48825,3319.7,3319.6,0.76366]
[1762481764029,0.48825,3319.7,3319.6,0.2754]
[1762481765536,0.66028,3319.5,3319.3,0.00254885]
[1762481765836,0.2507,3319.4,3319.3,0.00254885]
[1762481766838,0.66028,3319.5,3319.3,0.00254885]
[1762481767542,0.2507,3319.4,3319.3,0.00254885]
[1762481768442,0.739,3319.4,3319.3,0.00254885]
[1762481768938,0.4883,3319.4,3319.3,0.00254885]
[1762481769441,0.16733518,3320.0,3319.3,0.00254885]
[1762481769741,0.49624518,3320.0,3319.9,0.2402]
[1762481770142,0.00803518,3320.0,3319.9,0.72842]
[1762481772543,0.49624518,3320.0,3319.9,0.2402]
[1762481772948,0.49624518,3320.0,3319.9,0.72842]
[1762481773846,0.00803518,3320.0,3319.9,0.72842]
[1762481774047,0.00803518,3320.0,3319.9,0.2402]
[1762481774348,3.3671,3321.0,3320.7,0.2402]
[1762481774950,0.48809,3320.8,3320.7,0.7283]
[1762481775448,0.48809,3320.8,3320.5,9.217]
[1762481775449,0.73882,3320.6,3320.5,9.217]
[1762481775651,0.4227,3320.5,3320.4,3.21231691]
[1762481776054,0.91084,3320.5,3320.4,0.00451691]
[1762481776352,0.66014,3320.5,3320.4,0.00451691]
[1762481776851,0.48811,3320.7,3320.6,0.2402]
[1762481777853,0.48814,3320.5,3320.4,0.00451691]
[1762481778048,0.91084,3320.5,3320.4,0.00451691]
[1762481778448,0.66014,3320.5,3320.4,0.00451691]
[1762481778948,0.66014,3320.5,3320.4,0.49266691]
[1762481779254,0.66014,3320.5,3320.4,0.00451691]
[1762481780143,0.91084,3320.5,3320.4,0.00451691]
[1762481782749,0.172,3320.0,3319.4,3.2078]
[1762481782949,0.48828,3319.5,3319.4,3.2078]
[1762481783246,0.48828,3319.5,3319.4,12.4178]
[1762481783853,0.91098,3319.5,3319.4,3.2078]
[1762481784156,0.91098,3319.5,3319.3,0.00254885]
[1762481784157,0.172,3319.5,3319.3,0.00254885]
[1762481784353,0.4883,3319.4,3319.3,0.73105885]
[1762481784551,0.4883,3319.4,3319.3,0.24274885]
[1762481784750,0.4883,3319.4,3319.3,0.00254885]
[1762481784946,0.739,3319.4,3319.3,0.00254885]
[1762481785556,0.2507,3319.4,3319.3,0.00254885]
[1762481785761,0.739,3319.4,3319.3,0.00254885]
[1762481786655,3.9468,3319.4,3319.3,0.00254885]
[1762481787557,0.7391,3318.7,3318.6,7.409]
[1762481787754,0.2507,3318.1,3317.8,15.05210844]
[1762481788057,0.66051,3318.0,3317.8,9.208]
[1762481788362,0.48864,3317.1,3317.0,5.35557844]
[1762481788654,0.49191361,3317.1,3317.0,3.21094415]
[1762481789451,0.74261361,3317.1,3317.0,0.00314415]
[1762481789651,0.25397361,3317.1,3317.0,0.00314415]
[1762481790456,0.00327361,3317.1,3317.0,0.00314415]
[1762481791954,0.25397361,3317.1,3317.0,0.00314415]
[1762481796364,0.48875,3316.4,3316.2,0.2398]
[1762481796666,0.48875,3316.4,3315.8,3.2078]
[1762481796868,0.1487,3316.5,3315.8,3.2078]
[1762481797068,0.48881,3316.0,3315.9,0.2398]
[1762481797268,0.48881,3316.0,3315.9,0.2434254]
[1762481797963,0.48878,3316.2,3315.9,0.2434254]
[1762481798163,0.48879,3316.1,3315.9,0.2434254]
[1762481798466,0.48879,3316.1,3315.9,0.0036254]
[1762481798467,0.3788,3316.0,3315.9,0.0036254]
[1762481798670,0.1423,3316.0,3315.9,0.0036254]
[1762481798866,3.5866,3316.0,3315.9,0.0036254]
[1762481799268,0.3788,3316.0,3315.9,0.0036254]
[1762481799470,0.48879,3316.1,3315.9,0.0036254]
[1762481799676,0.3788,3316.0,3315.9,0.0036254]
[1762481799973,0.1487,3316.5,3316.0,0.48879]
[1762481800273,0.48877,3316.2,3316.0,0.48879]
[1762481800668,0.1487,3316.5,3315.9,0.0036254]
[1762481801167,3.5866,3316.0,3315.9,0.0036254]
[1762481801367,0.1423,3315.5,3315.2,3.2078]
[1762481801567,0.1423,3315.5,3314.8,3.2078]
[1762481801568,0.48895,3315.0,3314.8,3.2078]
[1762481801780,0.48895,3315.0,3314.8,3.69677]
[1762481802071,0.48893,3315.2,3314.8,3.69677]
[1762481802276,0.1423,3315.5,3314.8,3.69677]
[1762481802578,0.48895,3315.0,3314.8,3.6999277]
[1762481802771,0.14682379,3315.5,3314.9,0.48895]
[1762481802971,0.48893,3315.1,3314.9,0.48895]
[1762481803470,0.14682379,3315.5,3314.8,3.2109577]
[1762481803672,0.48889,3315.4,3315.1,0.48892]
[1762481803876,0.48891,3315.3,3315.2,3.2078]
[1762481804074,0.00452379,3315.5,3315.4,0.2401]
[1762481804273,0.48889,3315.4,3314.8,3.2109577]
[1762481804471,0.4889,3315.3,3315.2,0.48891]
[1762481804676,0.48889,3315.4,3315.2,0.48891]
[1762481804874,0.48889,3315.4,3315.2,3.69671]
[1762481805077,0.63570379,3315.5,3315.3,0.48889]
[1762481805582,0.63570379,3315.5,3315.2,3.2078]
[1762481805583,0.4889,3315.4,3315.2,3.2078]
[1762481805771,0.2365,3315.3,3315.2,3.2078]
[1762481805973,0.72546,3314.9,3314.8,0.0031577]
[1762481806573,0.48896,3314.9,3314.8,0.0031577]
[1762481806773,0.1423,3315.0,3314.8,0.4921277]
[1762481806979,0.48892,3315.2,3315.0,0.48894]
[1762481807179,0.48896,3314.9,3314.8,0.4921177]
[1762481807685,0.14682379,3315.5,3314.8,3.2109577]
[1762481807880,0.14682379,3315.5,3315.2,3.2078]
[1762481807881,0.72541,3315.3,3315.2,3.2078]
[1762481808083,0.72546,3314.9,3314.8,0.4921277]
[1762481808987,0.14682379,3315.5,3314.8,0.0031577]
[1762481809187,0.48889,3315.4,3315.2,0.48891]
[1762481809385,0.63570379,3315.5,3315.3,0.4889]
[1762481809593,0.49340379,3315.5,3315.3,0.4889]
[1762481809793,0.63570379,3315.5,3315.4,0.48889]
[1762481809994,0.63569379,3315.5,3315.4,0.48889]
[1762481810791,0.14682379,3315.5,3315.4,3.69669]
[1762481811185,0.38332379,3315.5,3315.4,3.69669]
[1762481811390,0.4888,3316.1,3316.0,0.4888]
[1762481811592,0.6311,3316.0,3315.9,0.48881]
[1762481811895,0.2365,3315.6,3315.5,7.49967]
[1762481812091,0.1423,3316.0,3315.7,0.48884]
[1762481812690,0.48884,3315.8,3315.7,0.48884]
[1762481812890,0.49329379,3316.2,3316.1,0.48878]
[1762481813490,0.00452379,3316.2,3316.1,0.48878]
[1762481813690,0.00452379,3316.2,3316.1,0.72888]
[1762481814092,0.00452379,3316.2,3316.1,0.97559725]
[1762481814391,0.48867,3316.9,3316.8,0.48866]
[1762481814595,0.1423,3317.0,3316.8,0.48866]
[1762481814798,0.48862,3317.2,3317.0,0.48865]
[1762481814985,0.48865,3317.0,3316.8,0.48867]
[1762481815390,0.48868,3316.8,3316.6,3.2078]
[1762481815592,0.48868,3316.8,3316.6,3.69651]
[1762481815898,0.48867,3316.9,3316.8,0.48868]
[1762481816196,0.48868,3316.8,3316.6,3.2078]
[1762481816394,0.2365,3316.7,3316.6,3.2078]
[1762481816702,0.2365,3316.2,3316.1,3.803]
[1762481816897,0.1423,3316.0,3315.8,3.69662]
[1762481817085,0.1423,3316.0,3315.5,0.00452379]
[1762481817291,0.48886,3315.6,3315.5,0.49339379]
[1762481817486,0.72536,3315.6,3315.5,0.00452379]
[1762481819801,0.2365,3315.6,3315.5,0.00452379]
[1762481820900,0.56454981,3315.6,3315.5,0.00452379]
[1762481821597,3.2078,3316.4,3315.9,0.2401]
[1762481821798,0.1423,3316.5,3316.1,0.48878]
[1762481821799,0.32813007,3316.3,3316.1,0.48878]
[1762481822099,0.2365,3315.9,3315.5,0.00452379]
[1762481822296,0.2365,3315.6,3315.5,0.00452379]
[1762481822703,0.72546,3314.9,3314.8,0.0031577]
[1762481823196,0.1423,3314.5,3314.0,3.2078]
[1762481823400,0.1423,3314.5,3314.1,0.48908]
[1762481823798,0.48906,3314.3,3314.2,0.48906]
[1762481824097,0.72558,3314.1,3314.0,3.21232379]
[1762481824302,0.2365,3314.1,3314.0,3.21584595]
[1762481825599,0.2365,3314.1,3314.0,0.00804595]
[1762481826705,0.00317277,3314.3,3314.0,0.49713595]
[1762481827302,0.48907,3314.2,3314.1,0.48907]
[1762481827505,0.48907,3314.2,3314.0,0.00804595]
[1762481827699,0.48907,3314.2,3314.0,0.49712595]
[1762481828201,0.2367,3314.1,3314.0,0.00804595]
[1762481829509,0.00317277,3314.3,3314.1,0.48907]
[1762481830108,0.2367,3314.2,3314.1,0.48907]
[1762481830504,0.00317277,3314.3,3314.2,0.2543]
[1762481832506,3.2078,3315.6,3315.0,0.48894]
[1762481832703,3.3501,3316.0,3315.3,0.4889]
[1762481833012,0.2367,3315.3,3315.2,3.2078]
[1762481833412,3.3501,3316.0,3315.2,3.2078]
[1762481833413,3.3501,3316.0,3315.4,0.48888]
[1762481833603,0.00452379,3315.6,3315.4,0.48888]
[1762481833810,0.00290104,3315.5,3315.4,0.74318]
[1762481835703,0.1388,3316.5,3315.6,0.0938]
[1762481835908,0.1388,3317.0,3316.3,3.2078]
[1762481836102,0.72544,3316.4,3315.9,0.48881]
[1762481836309,0.62758,3316.2,3315.9,0.48881]
[1762481836515,0.1388,3316.2,3316.1,3.2078]
[1762481836814,0.4887,3316.7,3316.1,3.2078]
[1762481837015,0.4957581,3316.7,3316.6,3.2078]
[1762481837215,0.0070581,3316.7,3316.6,3.46552485]
[1762481840821,0.0070581,3316.7,3316.6,7.26852485]
[1762481841026,3.2078,3318.2,3316.8,0.0859]
[1762481841218,3.2078,3318.2,3317.6,0.48856]
[1762481841416,0.48856,3317.7,3317.5,0.48857]
[1762481841617,3.2078,3318.2,3317.4,3.2078]
[1762481841817,3.2078,3318.2,3317.4,3.69639]
[1762481842018,0.14577143,3318.0,3317.4,3.70091379]
[1762481842318,0.48856,3317.6,3317.5,0.48857]
[1762481842615,0.48856,3317.6,3317.4,3.70091379]
[1762481842921,0.3755,3317.5,3317.4,3.21232379]
[1762481845124,0.1388,3317.5,3317.4,3.21232379]
[1762481845412,0.48856,3317.6,3317.4,3.21232379]
[1762481845922,0.14577143,3318.0,3317.5,0.48857]
[1762481846229,0.14577143,3318.0,3317.4,3.21232379]
[1762481846230,0.00697143,3318.0,3317.8,0.48853]
[1762481846521,0.48853,3317.8,3317.4,3.70090379]
[1762481846712,0.48853,3317.8,3317.6,0.48856]
[1762481846914,0.00697143,3318.0,3317.4,3.21232379]
[1762481846915,0.49548143,3318.0,3317.8,0.48852]
[1762481847114,0.49548143,3318.0,3317.8,3.69632]
[1762481848820,0.72522,3317.9,3317.8,3.2078]
[1762481849024,0.86408,3317.5,3317.4,0.00452379]
[1762481849524,0.1388,3317.5,3317.4,0.49311379]
[1762481849720,0.14577143,3318.0,3317.4,0.00452379]
[1762481849916,0.14577143,3318.0,3317.7,3.2078]
[1762481850118,0.00697143,3318.0,3317.9,0.74282]
[1762481851418,0.48843,3318.6,3318.5,0.2543]
[1762481851720,0.4884,3318.8,3318.7,0.4884]
[1762481852424,0.48841,3318.7,3318.4,3.2078]
[1762481852622,0.00320439,3318.8,3318.4,3.2078]
[1762481852825,0.48843,3318.5,3318.4,3.2078]
[1762481853222,0.00320439,3318.8,3318.4,3.2078]
[1762481853421,0.00320439,3318.8,3318.7,0.7427]
[1762481854227,0.00320439,3318.8,3318.7,0.2543]
[1762481855428,0.00452379,3319.1,3318.4,12.3978]
[1762481855429,0.00452379,3319.1,3319.0,0.73366]
[1762481855725,3.2078,3320.2,3319.8,0.48824]
[1762481855925,0.48821,3320.0,3319.9,0.48822]
[1762481856528,0.002737,3320.0,3319.8,0.73353]
[1762481856830,0.002737,3320.0,3319.9,0.2453]
[1762481858425,0.00299297,3320.2,3320.1,0.2463]
[1762481858626,0.00299297,3320.2,3320.1,3.4541]
[1762481859531,0.00665866,3320.2,3320.1,3.4541]
[1762481860128,0.24015866,3320.2,3320.1,3.2078]
[1762481860432,0.00665866,3320.2,3320.1,3.4541]
[1762481863529,0.00665866,3320.2,3320.1,7.2571]
[1762481865835,3.2078,3321.4,3320.5,0.0865]
[1762481866037,0.1409,3321.5,3320.5,0.0865]
[1762481866038,0.48799,3321.5,3321.4,0.2463]
[1762481866229,3.2078,3322.2,3321.4,0.2463]
[1762481866536,0.48795,3321.8,3321.7,0.2463]
[1762481866730,0.48801,3321.4,3321.2,3.2078]
[1762481866932,0.48808,3320.9,3320.8,3.2078]
[1762481867734,0.48808,3320.9,3320.5,3.69664677]
[1762481867735,0.72158,3320.9,3320.5,0.00451677]
[1762481868036,0.72162,3320.6,3320.5,0.00451677]
[1762481868639,0.48812,3320.6,3320.5,0.00451677]
[1762481869138,0.72162,3320.6,3320.5,0.00451677]
[1762481871940,0.48822,3319.9,3319.8,3.21047715]